fUSD/lending_fUSD_20260226
["ID","MTS","AMOUNT","RATE_DAILY","PERIOD"]
[406734905,1772128245970,-226.04,0.00013699,2]
[406734906,1772128245979,-188.37,0.00013699,2]
[406734907,1772128245989,-156.97,0.00013699,2]
[406734908,1772128246001,-784.9,0.00013699,2]
[406734909,1772128246011,-1000.0,0.00013699,7]
[406734910,1772128246020,-26292.70528877,0.00013848,2]
[406734911,1772128246029,-3700.0,0.000139,5]
[406734912,1772128246039,-3500.0,0.00014116,2]
[406734913,1772128246048,-500.0,0.00014126,2]
[406734914,1772128246056,-500.0,0.00014126,2]
[406734915,1772128246067,-500.0,0.00014126,2]
[406734916,1772128246076,-500.0,0.00014126,2]
[406734917,1772128246086,-500.0,0.00014126,2]
[406734918,1772128246095,-500.0,0.00014126,2]
[406734919,1772128246105,-500.0,0.00014126,2]
[406734920,1772128246114,-500.0,0.00014126,2]
[406734922,1772128246123,-500.0,0.00014126,2]
[406734924,1772128246132,-500.0,0.00014126,2]
[406734926,1772128246141,-500.0,0.00014126,2]
[406734928,1772128246150,-368.2260392,0.00014126,2]
[406734929,1772128246159,-509.36,0.00014173,2]
[406734930,1772128246168,-500.0,0.00014173,19]
[406734931,1772128246177,-224.40086961,0.00014224,2]
[406734932,1772128246186,-151.0,0.00014634,2]
[406734933,1772128246197,-2966.1264312,0.00014664,2]
[406734934,1772128246206,-152.0,0.00014738,3]
[406734935,1772128246215,-28065.41,0.00014853,2]
[406734936,1772128246224,-26292.70528877,0.00014857,2]
[406734937,1772128246232,-160.0,0.00014914,2]
[406734938,1772128246241,-173.95657067,0.00014914,2]
[406734939,1772128246250,-502.0,0.0001512,2]
[406734940,1772128246259,-618.0,0.00015138,2]
[406734941,1772128246269,-1340.0,0.00015138,2]
[406734942,1772128246279,-3498.0,0.00015138,2]
[406734943,1772128246288,-1041.0,0.00015138,2]
[406734944,1772128246298,-1277.0,0.00015138,2]
[406734945,1772128246307,-150.597,0.00015138,2]
[406734946,1772128246316,-466.539,0.00015138,2]
[406734947,1772128246325,-4572.0,0.00015138,2]
[406734948,1772128246334,-2456.0,0.00015138,2]
[406734949,1772128246343,-26292.70528877,0.00015867,2]
[406734950,1772128246352,-9999.99,0.00016116,2]
[406734951,1772128246361,-9999.99,0.00016116,2]
[406734952,1772128246370,-150.99,0.00016116,2]
[406734953,1772128246379,-381.71,0.00016116,2]
[406734954,1772128246388,-299.99,0.00016116,4]
[406734955,1772128246397,-154.74390454,0.00016159,2]
[406734956,1772128246406,-11563.7384778,0.00016162,2]
[406734957,1772128246415,-21547.704675,0.00016162,2]
[406734958,1772128246425,-401955.8718402,0.00016162,2]
[406734959,1772128246434,-3066.2765998,0.00016162,2]
[406734960,1772128246443,-48482.3355188,0.00016162,2]
[406734961,1772128246452,-150.07970695,0.00016256,2]
[406734962,1772128246461,-500.0,0.00016356,2]
[406734963,1772128246471,-500.0,0.00016356,2]
[406734964,1772128246481,-700.0,0.00016356,2]
[406734965,1772128246490,-1212.0,0.000164,2]
[406734966,1772128246499,-247.0125,0.00016413,14]
[406734967,1772128246511,-158.335,0.00016413,14]
[406734968,1772128246520,-621.4,0.00016438,2]
[406734969,1772128246529,-500.0,0.00016438,2]
[406734970,1772128246539,-152.0,0.00016445,4]
[406734971,1772128246548,-500.0,0.00016493,2]
[406734972,1772128246558,-500.0,0.00016548,2]
[406734973,1772128246567,-500.0,0.00016602,2]
[406734974,1772128246576,-693.0,0.00016616,2]
[406734975,1772128246585,-150.0,0.00016616,2]
[406734976,1772128246595,-150.0,0.00016616,2]
[406734977,1772128246605,-150.0,0.00016616,2]
[406734978,1772128246614,-150.0,0.00016616,2]
[406734979,1772128246624,-236.0,0.00016616,2]
[406734981,1772128246633,-547.0,0.00016624,2]
[406734982,1772128246642,-150.0,0.00016624,2]
[406734983,1772128246652,-150.0,0.00016624,2]
[406734984,1772128246662,-268.0,0.00016624,2]
[406734985,1772128246671,-500.0,0.00016657,2]
[406734986,1772128246681,-502.0,0.00016665,3]
[406734987,1772128246690,-500.0,0.00016712,2]
[406734988,1772128246699,-621.4,0.00016712,2]
[406734989,1772128246708,-160.0,0.0001672,2]
[406734990,1772128246718,-500.0,0.00016767,2]
[406734991,1772128246727,-200.0,0.00016792,2]
[406734992,1772128246737,-10000.0,0.00016798,2]
[406734993,1772128246747,-379.89029775,0.00016822,2]
[406734994,1772128246756,-1000.0,0.00016849,7]
[406734995,1772128246765,-509.36,0.00016851,2]
[406734996,1772128246774,-500.0,0.00016851,20]
[406734997,1772128246784,-26292.70528877,0.00016876,2]
[406734998,1772128246794,-187.29970089,0.00016877,2]
[406734999,1772128246804,-150.0,0.00016877,2]
[406735000,1772128246813,-150.0,0.00016877,2]
[406735002,1772128246823,-156.66979557,0.00016877,2]
[406735003,1772128246832,-150.0,0.00016877,2]
[406735004,1772128246842,-339.21457322,0.00016877,2]
[406735005,1772128246851,-150.0,0.00016877,2]
[406735006,1772128246861,-150.0,0.00016877,2]
[406735007,1772128246870,-150.0,0.00016877,2]
[406735008,1772128246879,-150.0,0.00016877,2]
[406735009,1772128246888,-150.0,0.00016877,2]
[406735010,1772128246897,-150.0,0.00016877,2]
[406735011,1772128246906,-150.0,0.00016877,2]
[406735012,1772128246915,-150.0,0.00016877,2]
[406735013,1772128246925,-150.0,0.00016877,2]
[406735014,1772128246934,-150.0,0.00016877,2]
[406735015,1772128246943,-187.29970089,0.00016888,2]
[406735016,1772128246960,-156.66979557,0.00016888,2]
[406735017,1772128246972,-339.21457322,0.00016888,2]
[406735018,1772128246982,-150.0,0.0001689,2]
[406735019,1772128246992,-150.0,0.00016893,2]
[406735020,1772128247005,-150.0,0.00016894,2]
[406735021,1772128247015,-187.29970089,0.00016899,2]
[406735022,1772128247024,-156.66979557,0.00016899,2]
[406735023,1772128247034,-339.21457322,0.00016899,2]
[406735024,1772128247043,-150.0,0.00016903,2]
[406735025,1772128247053,-150.0,0.00016905,2]
[406735026,1772128247062,-150.0,0.0001691,2]
[406735027,1772128247074,-150.0,0.0001691,2]
[406735028,1772128247083,-187.29970089,0.00016911,2]
[406735029,1772128247094,-156.66979557,0.00016911,2]
[406735030,1772128247103,-339.21457322,0.00016911,2]
[406735031,1772128247112,-150.0,0.00016911,2]
[406735032,1772128247121,-150.0,0.00016915,2]
[406735033,1772128247130,-150.0,0.00016916,2]
[406735034,1772128247139,-187.29970089,0.00016922,2]
[406735035,1772128247148,-156.66979557,0.00016922,2]
[406735036,1772128247157,-339.21457322,0.00016922,2]
[406735037,1772128247166,-150.0,0.00016926,2]
[406735038,1772128247176,-150.0,0.00016926,2]
[406735039,1772128247186,-150.0,0.00016927,2]
[406735040,1772128247196,-150.0,0.00016928,2]
[406735041,1772128247205,-150.0,0.00016929,2]
[406735042,1772128247217,-150.0,0.00016933,2]
[406735043,1772128247227,-187.29970089,0.00016933,2]
[406735044,1772128247237,-156.66979557,0.00016933,2]
[406735045,1772128247247,-339.21457322,0.00016933,2]
[406735046,1772128247258,-150.0,0.00016942,2]
[406735047,1772128247267,-150.0,0.00016943,2]
[406735048,1772128247277,-150.0,0.00016944,2]
[406735049,1772128247288,-187.29970089,0.00016945,2]
[406735050,1772128247298,-156.66979557,0.00016945,2]
[406735051,1772128247434,-339.21457322,0.00016945,2]
[406735052,1772128247445,-150.0,0.00016945,2]
[406735053,1772128247456,-150.0,0.00016954,2]
[406735054,1772128247466,-150.0,0.00016955,2]
[406735055,1772128247475,-187.29970089,0.00016956,2]
[406735056,1772128247484,-156.66979557,0.00016956,2]
[406735057,1772128247493,-339.21457322,0.00016956,2]
[406735058,1772128247502,-150.0,0.00016961,2]
[406735059,1772128247512,-150.0,0.00016961,2]
[406735060,1772128247521,-247.0125,0.00016961,14]
[406735061,1772128247531,-158.335,0.00016961,14]
[406735062,1772128247540,-150.0,0.00016962,2]
[406735063,1772128247551,-187.29970089,0.00016967,2]
[406735064,1772128247560,-156.66979557,0.00016967,2]
[406735065,1772128247569,-339.21457322,0.00016967,2]
[406735066,1772128247578,-150.0,0.00016968,2]
[406735067,1772128247587,-150.0,0.00016974,2]
[406735068,1772128247598,-150.0,0.00016974,2]
[406735069,1772128247607,-150.0,0.00016976,2]
[406735070,1772128247616,-150.0,0.00016977,2]
[406735071,1772128247625,-187.29970089,0.00016979,2]
[406735072,1772128247634,-156.66979557,0.00016979,2]
[406735073,1772128247643,-339.21457322,0.00016979,2]
[406735074,1772128247653,-150.0,0.00016979,2]
[406735075,1772128247663,-150.0,0.00016981,2]
[406735076,1772128247673,-621.4,0.00016986,2]
[406735077,1772128247682,-150.0,0.00016989,2]
[406735078,1772128247692,-150.0,0.00016989,2]
[406735079,1772128247702,-187.29970089,0.0001699,2]
[406735080,1772128247712,-156.66979557,0.0001699,2]
[406735081,1772128247721,-339.21457322,0.0001699,2]
[406735082,1772128247730,-150.0,0.00016993,2]
[406735083,1772128247739,-150.0,0.00016994,2]
[406735084,1772128247748,-150.0,0.00016994,2]
[406735085,1772128247757,-150.0,0.00016996,2]
[406735086,1772128247766,-500.0,0.00017,7]
[406735087,1772128247775,-417.39,0.00017,7]
[406735088,1772128247784,-187.29970089,0.00017002,2]
[406735089,1772128247793,-156.66979557,0.00017002,2]
[406735090,1772128247801,-339.21457322,0.00017002,2]
[406735091,1772128247811,-150.0,0.00017007,2]
[406735092,1772128247820,-150.0,0.00017009,2]
[406735093,1772128247829,-150.0,0.00017011,2]
[406735094,1772128247838,-187.29970089,0.00017013,2]
[406735095,1772128247849,-156.66979557,0.00017013,2]
[406735096,1772128247857,-339.21457322,0.00017013,2]
[406735097,1772128247866,-150.0,0.00017013,2]
[406735098,1772128247877,-150.0,0.00017017,2]
[406735099,1772128247886,-150.0,0.0001702,2]
[406735100,1772128247895,-150.0,0.00017023,2]
[406735101,1772128247905,-150.0,0.00017023,2]
[406735102,1772128247914,-187.29970089,0.00017024,2]
[406735103,1772128247923,-156.66979557,0.00017024,2]
[406735104,1772128247932,-339.21457322,0.00017024,2]
[406735105,1772128247941,-150.0,0.00017028,2]
[406735106,1772128247949,-150.0,0.0001703,2]
[406735107,1772128247958,-150.0,0.00017032,2]
[406735108,1772128247968,-150.0,0.00017033,2]
[406735109,1772128247977,-187.29970089,0.00017036,2]
[406735110,1772128247986,-156.66979557,0.00017036,2]
[406735111,1772128248000,-339.21457322,0.00017036,2]
[406735112,1772128248009,-150.0,0.00017037,2]
[406735113,1772128248018,-150.0,0.00017037,2]
[406735114,1772128248027,-190.0,0.0001704,2]
[406735115,1772128248038,-200.0,0.00017041,2]
[406735116,1772128248047,-200.0,0.00017041,2]
[406735117,1772128248056,-200.0,0.00017041,2]
[406735118,1772128248065,-200.0,0.00017041,2]
[406735119,1772128248075,-200.0,0.00017041,2]
[406735120,1772128248085,-200.0,0.00017041,2]
[406735121,1772128248094,-200.0,0.00017041,2]
[406735122,1772128248103,-200.0,0.00017041,2]
[406735123,1772128248113,-200.0,0.00017041,2]
[406735124,1772128248122,-200.0,0.00017041,2]
[406735125,1772128248132,-200.0,0.00017041,2]
[406735126,1772128248144,-200.0,0.00017041,2]
[406735127,1772128248153,-200.0,0.00017041,2]
[406735128,1772128248162,-200.0,0.00017041,2]
[406735129,1772128248172,-200.0,0.00017041,2]
[406735130,1772128248182,-200.0,0.00017041,2]
[406735131,1772128248191,-200.0,0.00017041,2]
[406735132,1772128248200,-200.0,0.00017041,2]
[406735133,1772128248210,-200.0,0.00017041,2]
[406735134,1772128248219,-200.0,0.00017041,2]
[406735135,1772128248228,-200.0,0.00017041,2]
[406735136,1772128248238,-200.0,0.00017041,2]
[406735137,1772128248248,-200.0,0.00017041,2]
[406735138,1772128248257,-200.0,0.00017041,2]
[406735139,1772128248266,-200.0,0.00017041,2]
[406735140,1772128248276,-200.0,0.00017041,2]
[406735141,1772128248285,-200.0,0.00017041,2]
[406735142,1772128248294,-200.0,0.00017041,2]
[406735143,1772128248302,-200.0,0.00017041,2]
[406735144,1772128248311,-200.0,0.00017041,2]
[406735145,1772128248320,-200.0,0.00017041,2]
[406735146,1772128248328,-200.0,0.00017041,2]
[406735147,1772128248337,-200.0,0.00017041,2]
[406735148,1772128248347,-200.0,0.00017041,2]
[406735149,1772128248356,-200.0,0.00017041,2]
[406735150,1772128248365,-200.0,0.00017041,2]
[406735151,1772128248374,-240.0,0.00017041,2]
[406735152,1772128248383,-800.0,0.00017041,2]
[406735153,1772128248392,-800.0,0.00017041,2]
[406735154,1772128248401,-800.0,0.00017041,2]
[406735155,1772128248410,-800.0,0.00017041,2]
[406735156,1772128248419,-800.0,0.00017041,2]
[406735157,1772128248428,-800.0,0.00017041,2]
[406735158,1772128248437,-800.0,0.00017041,2]
[406735159,1772128248446,-800.0,0.00017041,2]
[406735160,1772128248455,-800.0,0.00017041,2]
[406735161,1772128248464,-800.0,0.00017041,2]
[406735162,1772128248474,-800.0,0.00017041,2]
[406735163,1772128248483,-800.0,0.00017041,2]
[406735164,1772128248492,-800.0,0.00017041,2]
[406735165,1772128248501,-800.0,0.00017041,2]
[406735166,1772128248512,-800.0,0.00017041,2]
[406735167,1772128248521,-800.0,0.00017041,2]
[406735168,1772128248531,-800.0,0.00017041,2]
[406735169,1772128248540,-800.0,0.00017041,2]
[406735170,1772128248550,-800.0,0.00017041,2]
[406735171,1772128248559,-800.0,0.00017041,2]
[406735172,1772128248568,-800.0,0.00017041,2]
[406735173,1772128248577,-800.0,0.00017041,2]
[406735174,1772128248586,-800.0,0.00017041,2]
[406735175,1772128248596,-800.0,0.00017041,2]
[406735176,1772128248605,-800.0,0.00017041,2]
[406735177,1772128248615,-800.0,0.00017041,2]
[406735178,1772128248624,-800.0,0.00017041,2]
[406735179,1772128248633,-800.0,0.00017041,2]
[406735180,1772128248642,-800.0,0.00017041,2]
[406735181,1772128248652,-800.0,0.00017041,2]
[406735182,1772128248662,-800.0,0.00017041,2]
[406735183,1772128248671,-800.0,0.00017041,2]
[406735184,1772128248681,-800.0,0.00017041,2]
[406735185,1772128248690,-800.0,0.00017041,2]
[406735186,1772128248700,-800.0,0.00017041,2]
[406735187,1772128248709,-800.0,0.00017041,2]
[406735188,1772128248718,-800.0,0.00017041,2]
[406735189,1772128248728,-800.0,0.00017041,2]
[406735190,1772128248737,-800.0,0.00017041,2]
[406735191,1772128248747,-800.0,0.00017041,2]
[406735192,1772128248847,-800.0,0.00017041,2]
[406735193,1772128248856,-800.0,0.00017041,2]
[406735194,1772128248866,-433.0,0.00017041,2]
[406735195,1772128248875,-150.0,0.00017042,2]
[406735196,1772128248885,-150.0,0.00017044,2]
[406735197,1772128248894,-150.0,0.00017045,2]
[406735198,1772128248903,-150.0,0.00017047,2]
[406735199,1772128248912,-187.29970089,0.00017047,2]
[406735200,1772128248921,-156.66979557,0.00017047,2]
[406735201,1772128248931,-339.21457322,0.00017047,2]
[406735202,1772128248940,-150.0,0.00017047,2]
[406735203,1772128248949,-187.29970089,0.00017058,2]
[406735204,1772128248959,-156.66979557,0.00017058,2]
[406735205,1772128248968,-339.21457322,0.00017058,2]
[406735206,1772128248978,-150.0,0.0001706,2]
[406735207,1772128248987,-150.0,0.00017061,2]
[406735208,1772128248998,-150.0,0.00017064,2]
[406735209,1772128249009,-187.29970089,0.0001707,2]
[406735210,1772128249018,-156.66979557,0.0001707,2]
[406735211,1772128249027,-339.21457322,0.0001707,2]
[406735212,1772128249038,-529.0,0.0001707,2]
[406735213,1772128249047,-150.0,0.0001707,2]
[406735214,1772128249056,-150.0,0.00017072,2]
[406735215,1772128249066,-150.0,0.00017072,2]
[406735216,1772128249078,-150.0,0.00017073,2]
[406735217,1772128249087,-150.0,0.00017073,2]
[406735218,1772128249098,-150.0,0.00017075,2]
[406735219,1772128249107,-150.0,0.00017078,2]
[406735220,1772128249116,-187.29970089,0.00017081,2]
[406735221,1772128249126,-156.66979557,0.00017081,2]
[406735222,1772128249135,-339.21457322,0.00017081,2]
[406735223,1772128249144,-150.0,0.00017081,2]
[406735224,1772128249154,-150.0,0.00017086,2]
[406735225,1772128249163,-187.29970089,0.00017092,2]
[406735226,1772128249172,-156.66979557,0.00017092,2]
[406735227,1772128249182,-339.21457322,0.00017092,2]
[406735228,1772128249191,-150.0,0.00017095,2]
[406735229,1772128249201,-150.0,0.00017098,2]
[406735230,1772128249210,-529.0,0.00017098,2]
[406735231,1772128249219,-150.0,0.00017099,2]
[406735232,1772128249228,-151.0,0.00017099,2]
[406735233,1772128249238,-309.29654756,0.00017099,2]
[406735234,1772128249247,-693.3919763,0.00017099,2]
[406735235,1772128249256,-500.0,0.00017099,2]
[406735236,1772128249267,-500.0,0.00017099,2]
[406735237,1772128249277,-500.0,0.00017099,2]
[406735238,1772128249286,-500.0,0.00017099,2]
[406735239,1772128249296,-500.0,0.00017099,2]
[406735240,1772128249305,-500.0,0.00017099,2]
[406735241,1772128249314,-500.0,0.00017099,2]
[406735242,1772128249324,-500.0,0.00017099,2]
[406735243,1772128249333,-500.0,0.00017099,2]
[406735244,1772128249343,-500.0,0.00017099,2]
[406735245,1772128249353,-500.0,0.00017099,2]
[406735246,1772128249362,-500.0,0.00017099,2]
[406735247,1772128249371,-500.0,0.00017099,2]
[406735248,1772128249380,-500.0,0.00017099,2]
[406735249,1772128249389,-500.0,0.00017099,2]
[406735250,1772128249399,-500.0,0.00017099,2]
[406735251,1772128249408,-373.19905658,0.00017099,2]
[406735252,1772128249418,-500.0,0.00017099,2]
[406735253,1772128249428,-5050.94522285,0.000171,2]
[406735254,1772128249437,-5436.70489032,0.000171,2]
[406735255,1772128249447,-20000.0,0.000171,2]
[406735256,1772128249465,-150.0,0.00017101,2]
[406735257,1772128249481,-150.0,0.00017101,2]
[406735258,1772128249500,-187.29970089,0.00017104,2]
[406735259,1772128249521,-156.66979557,0.00017104,2]
[406735260,1772128249537,-339.21457322,0.00017104,2]
[406735261,1772128249554,-150.0,0.00017108,2]
[406735262,1772128249572,-150.0,0.00017109,2]
[406735263,1772128249590,-150.0,0.00017111,2]
[406735264,1772128249610,-150.0,0.00017112,2]
[406735265,1772128249627,-187.29970089,0.00017115,2]
[406735266,1772128249648,-156.66979557,0.00017115,2]
[406735267,1772128249664,-339.21457322,0.00017115,2]
[406735268,1772128249678,-150.0,0.00017115,2]
[406735269,1772128249698,-5380.9528186,0.00017115,2]
[406735270,1772128249710,-150.0,0.00017121,2]
[406735271,1772128249726,-150.0,0.00017121,2]
[406735272,1772128249739,-150.0,0.00017125,2]
[406735273,1772128249753,-187.29970089,0.00017126,2]
[406735274,1772128249768,-156.66979557,0.00017126,2]
[406735275,1772128249783,-339.21457322,0.00017126,2]
[406735276,1772128249798,-150.0,0.00017128,2]
[406735277,1772128249812,-150.0,0.00017129,2]
[406735278,1772128249826,-150.0,0.00017132,2]
[406735279,1772128249841,-187.29970089,0.00017138,2]
[406735280,1772128249855,-156.66979557,0.00017138,2]
[406735281,1772128249870,-339.21457322,0.00017138,2]
[406735282,1772128249885,-150.0,0.00017138,2]
[406735283,1772128249899,-350.0,0.0001714,2]
[406735284,1772128249916,-150.0,0.00017141,2]
[406735285,1772128249931,-150.0,0.00017145,2]
[406735286,1772128249945,-150.0,0.00017148,2]
[406735287,1772128249960,-187.29970089,0.00017149,2]
[406735288,1772128249974,-156.66979557,0.00017149,2]
[406735289,1772128249989,-339.21457322,0.00017149,2]
[406735290,1772128250006,-150.0,0.00017149,2]
[406735291,1772128250021,-150.0,0.00017151,2]
[406735292,1772128250044,-719.04747942,0.00017154,2]
[406735293,1772128250064,-150.0,0.00017158,2]
[406735294,1772128250082,-187.29970089,0.0001716,2]
[406735295,1772128250100,-156.66979557,0.0001716,2]
[406735296,1772128250116,-339.21457322,0.0001716,2]
[406735297,1772128250132,-150.0,0.00017162,2]
[406735298,1772128250149,-150.0,0.00017164,2]
[406735299,1772128250165,-150.0,0.00017166,2]
[406735300,1772128250181,-150.0,0.0001717,2]
[406735301,1772128250196,-150.0,0.0001717,2]
[406735302,1772128250211,-187.29970089,0.00017172,2]
[406735303,1772128250226,-156.66979557,0.00017172,2]
[406735304,1772128250241,-339.21457322,0.00017172,2]
[406735305,1772128250257,-150.0,0.00017174,2]
[406735306,1772128250272,-150.0,0.00017177,2]
[406735307,1772128250288,-150.0,0.00017178,2]
[406735308,1772128250303,-187.29970089,0.00017183,2]
[406735309,1772128250319,-156.66979557,0.00017183,2]
[406735310,1772128250334,-339.21457322,0.00017183,2]
[406735311,1772128250352,-150.0,0.00017183,2]
[406735312,1772128250367,-150.0,0.00017186,2]
[406735313,1772128250382,-150.0,0.00017187,2]
[406735314,1772128250397,-150.0,0.0001719,2]
[406735315,1772128250412,-187.29970089,0.00017194,2]
[406735316,1772128250427,-156.66979557,0.00017194,2]
[406735317,1772128250441,-339.21457322,0.00017194,2]
[406735318,1772128250457,-150.0,0.00017195,2]
[406735319,1772128250472,-150.0,0.00017198,2]
[406735320,1772128250487,-150.0,0.00017198,2]
[406735321,1772128250646,-150.0,0.000172,2]
[406735322,1772128250668,-150.0,0.00017203,2]
[406735323,1772128250678,-1306.0,0.00017205,2]
[406735324,1772128250687,-1911.0,0.00017205,2]
[406735325,1772128250700,-187.29970089,0.00017206,2]
[406735326,1772128250710,-156.66979557,0.00017206,2]
[406735327,1772128250720,-339.21457322,0.00017206,2]
[406735328,1772128250729,-150.0,0.00017207,2]
[406735329,1772128250739,-745.65223616,0.00017209,2]
[406735330,1772128250749,-150.0,0.00017212,2]
[406735331,1772128250758,-150.0,0.00017214,2]
[406735332,1772128250767,-150.0,0.00017214,2]
[406735333,1772128250777,-150.0,0.00017216,2]
[406735334,1772128250786,-187.29970089,0.00017217,2]
[406735335,1772128250796,-156.66979557,0.00017217,2]
[406735336,1772128250805,-339.21457322,0.00017217,2]
[406735337,1772128250815,-150.0,0.00017217,2]
[406735338,1772128250825,-150.0,0.00017219,2]
[406735339,1772128250834,-150.0,0.00017219,2]
[406735340,1772128250844,-150.0,0.00017225,2]
[406735341,1772128250854,-187.29970089,0.00017228,2]
[406735342,1772128250865,-156.66979557,0.00017228,2]
[406735343,1772128250875,-339.21457322,0.00017228,2]
[406735344,1772128250885,-150.0,0.00017229,2]
[406735345,1772128250895,-150.0,0.00017229,2]
[406735346,1772128250905,-150.0,0.00017234,2]
[406735347,1772128250915,-529.0,0.00017239,2]
[406735348,1772128250925,-187.29970089,0.0001724,2]
[406735349,1772128250934,-156.66979557,0.0001724,2]
[406735350,1772128250944,-339.21457322,0.0001724,2]
[406735351,1772128250954,-150.0,0.0001724,2]
[406735352,1772128250964,-150.0,0.00017242,2]
[406735353,1772128250975,-150.0,0.00017242,2]
[406735354,1772128250985,-150.0,0.00017246,2]
[406735355,1772128250999,-187.29970089,0.00017251,2]
[406735356,1772128251010,-156.66979557,0.00017251,2]
[406735357,1772128251020,-150.0,0.00017251,2]
[406735358,1772128251030,-339.21457322,0.00017251,2]
[406735359,1772128251042,-150.0,0.00017251,2]
[406735360,1772128251052,-150.0,0.00017255,2]
[406735361,1772128251062,-621.4,0.0001726,2]
[406735362,1772128251073,-1000.0,0.0001726,2]
[406735363,1772128251082,-150.0,0.00017262,2]
[406735364,1772128251092,-187.29970089,0.00017262,2]
[406735365,1772128251102,-156.66979557,0.00017262,2]
[406735366,1772128251111,-339.21457322,0.00017262,2]
[406735367,1772128251120,-773.2413689,0.00017264,2]
[406735368,1772128251130,-150.0,0.00017264,2]
[406735369,1772128251139,-150.0,0.00017267,2]
[406735370,1772128251149,-150.0,0.00017267,2]
[406735371,1772128251158,-150.0,0.00017268,2]
[406735372,1772128251168,-150.0,0.00017269,2]
[406735373,1772128251178,-150.0,0.0001727,2]
[406735374,1772128251187,-150.0,0.00017273,2]
[406735375,1772128251197,-187.29970089,0.00017274,2]
[406735376,1772128251207,-156.66979557,0.00017274,2]
[406735377,1772128251217,-339.21457322,0.00017274,2]
[406735378,1772128251226,-150.0,0.00017279,2]
[406735379,1772128251236,-150.0,0.00017282,2]
[406735380,1772128251245,-187.29970089,0.00017285,2]
[406735381,1772128251255,-156.66979557,0.00017285,2]
[406735382,1772128251264,-339.21457322,0.00017285,2]
[406735383,1772128251274,-150.0,0.00017285,2]
[406735384,1772128251283,-150.0,0.00017295,2]
[406735385,1772128251293,-150.0,0.00017296,2]
[406735386,1772128251302,-187.29970089,0.00017297,2]
[406735387,1772128251312,-156.66979557,0.00017297,2]
[406735388,1772128251321,-339.21457322,0.00017297,2]
[406735389,1772128251331,-150.0,0.00017298,2]
[406735390,1772128251341,-150.0,0.00017302,2]
[406735391,1772128251351,-150.0,0.00017303,2]
[406735392,1772128251360,-150.0,0.00017306,2]
[406735393,1772128251369,-150.0,0.00017308,2]
[406735394,1772128251379,-187.29970089,0.00017308,2]
[406735395,1772128251388,-156.66979557,0.00017308,2]
[406735396,1772128251397,-339.21457322,0.00017308,2]
[406735397,1772128251407,-150.0,0.00017313,2]
[406735398,1772128251416,-150.0,0.00017316,2]
[406735399,1772128251425,-150.0,0.00017316,2]
[406735400,1772128251435,-801.85129955,0.00017319,2]
[406735401,1772128251444,-187.29970089,0.00017319,2]
[406735402,1772128251453,-156.66979557,0.00017319,2]
[406735403,1772128251462,-339.21457322,0.00017319,2]
[406735404,1772128251471,-150.0,0.00017319,2]
[406735405,1772128251481,-150.0,0.00017321,2]
[406735406,1772128251490,-150.0,0.00017326,2]
[406735407,1772128251500,-150.0,0.00017326,2]
[406735408,1772128251509,-150.0,0.00017329,2]
[406735409,1772128251518,-187.29970089,0.00017331,2]
[406735410,1772128251527,-156.66979557,0.00017331,2]